fUSD/lending_fUSD_20240414
["ID","MTS","AMOUNT","RATE_DAILY","PERIOD"]
[322556205,1713053183578,541.9,0.00018206,2]
[322556206,1713053214512,-163.67460013,0.00020095,2]
[322556207,1713053214538,-1340.14,0.00020156,2]
[322556208,1713053214559,-173.39,0.00020195,2]
[322556209,1713053214583,-541.9,0.0002047,2]
[322556210,1713053214605,-1238.99539987,0.00020696,2]
[322556211,1713053228782,412.83,0.0003,30]
[322556212,1713053235740,-4000.0,0.00020696,2]
[322556213,1713053237063,-2758.15230013,0.00020696,2]
[322556214,1713053237087,-1241.84769987,0.00020696,2]
[322556219,1713053348390,250.0,0.00019946,2]
[322556224,1713053431861,-690.97,0.00020156,2]
[322556226,1713053431874,-384.6,0.00020591,2]
[322556227,1713053431884,-125.40903847,0.00020647,2]
[322556228,1713053431897,-254.73528537,0.00020647,2]
[322556229,1713053432033,-4.45567616,0.00020647,2]
[322556230,1713053432043,-594.25930013,0.00020696,2]
[322556231,1713053432053,-384.6,0.00020704,2]
[322556232,1713053432063,-384.6,0.0002076,2]
[322556233,1713053432073,-384.6,0.00020817,2]
[322556234,1713053432083,-1000.0,0.00020832,2]
[322556235,1713053432094,-500.0,0.00020832,2]
[322556236,1713053432104,-384.6,0.00020873,2]
[322556237,1713053432114,-499.99,0.00020888,2]
[322556238,1713053432124,-305.19,0.00020888,2]
[322556239,1713053432134,-2539.82,0.00020893,2]
[322556240,1713053432144,-2579.33551047,0.00020898,2]
[322556241,1713053432155,-2648.46566186,0.00020898,2]
[322556242,1713053432165,-2579.33551046,0.00020898,2]
[322556243,1713053432177,-2648.46566178,0.00020898,2]
[322556244,1713053432187,-2579.33551046,0.00020898,2]
[322556245,1713053432197,-2648.46566178,0.00020898,2]
[322556246,1713053432206,-2579.33551046,0.00020899,2]
[322556247,1713053432216,-2648.46566178,0.00020899,2]
[322556248,1713053432227,-2579.33551046,0.00020899,2]
[322556249,1713053432239,-2648.46566178,0.00020899,2]
[322556250,1713053432253,-1000.0,0.00020899,2]
[322556252,1713053432264,-2579.33551046,0.00020899,2]
[322556253,1713053432274,-2648.46566178,0.00020899,2]
[322556254,1713053432284,-2579.33551046,0.00020899,2]
[322556255,1713053432293,-2648.46566178,0.00020899,2]
[322556256,1713053432303,-2579.33551046,0.000209,2]
[322556257,1713053432312,-2648.46566178,0.000209,2]
[322556258,1713053432322,-2579.33551046,0.000209,2]
[322556259,1713053432332,-2648.46566178,0.000209,2]
[322556260,1713053432341,-3781.63136139,0.000209,2]
[322556261,1713053432351,-3542.0098,0.000209,2]
[322556262,1713053432361,-10000.0,0.000209,2]
[322556263,1713053432371,-22840.08985511,0.000209,2]
[322556264,1713053432381,-151.3744,0.000209,2]
[322556265,1713053432391,-335.173345,0.000209,2]
[322556266,1713053432401,-2422.6226592,0.000209,2]
[322556267,1713053432410,-1000.0,0.000209,2]
[322556268,1713053432420,-538.84546713,0.000209,2]
[322556269,1713053432435,-266.04961062,0.000209,2]
[322556270,1713053432466,-488.59962225,0.000209,2]
[322556271,1713053432476,-2579.33551046,0.000209,2]
[322556272,1713053432486,-2648.46566178,0.000209,2]
[322556273,1713053432496,-330.5642764,0.000209,2]
[322556274,1713053432506,-306.88121887,0.000209,2]
[322556275,1713053432516,-57908.03043387,0.000209,2]
[322556276,1713053432540,-500.0,0.000209,2]
[322556289,1713053438021,-6415.20000001,0.000209,2]
[322556290,1713053438034,-93.12953563,0.000209,2]
[322556291,1713053438044,-384.6,0.0002093,2]
[322556292,1713053438053,-2036.41921122,0.00020979,2]
[322556293,1713053438096,-650.23539024,0.00020979,2]
[322556294,1713053438106,-384.6,0.00020986,2]
[322556295,1713053438116,-5300.0,0.0002099,2]
[322556296,1713053438126,-156.74977532,0.0002099,2]
[322556297,1713053438135,-1287.44264349,0.00020998,2]
[322556298,1713053438145,-1297.04126425,0.00020998,2]
[322556299,1713053438155,-1281.99487186,0.00020998,2]
[322556300,1713053438164,-404.94407083,0.00020998,2]
[322556301,1713053438174,-3076.4815945,0.00020998,2]
[322556302,1713053438185,-164.20368944,0.00020998,2]
[322556303,1713053438194,-297.17323386,0.00020998,2]
[322556304,1713053438204,-406.9206902,0.00020998,2]
[322556306,1713053438213,-326.61236592,0.00020998,2]
[322556308,1713053438223,-187.67748153,0.00020998,2]
[322556310,1713053438233,-1580.41392657,0.00020998,2]
[322556312,1713053438243,-371.95825124,0.00020998,2]
[322556314,1713053438255,-623.38974621,0.00020998,2]
[322556316,1713053438266,-199.90590528,0.00020998,2]
[322556318,1713053438277,-155.0,0.00020998,2]
[322556320,1713053438288,-4440.00299243,0.00020998,2]
[322556322,1713053438298,-809.66168614,0.00020998,2]
[322556324,1713053438308,-356.43205691,0.00020998,2]
[322556326,1713053438318,-1433.55796741,0.00020999,2]
[322556329,1713053438329,-620.31159771,0.00020999,2]
[322556331,1713053438338,-4926.22908304,0.00020999,2]
[322556333,1713053438347,-311.58224268,0.00020999,2]
[322556334,1713053438356,-11140107.10286664,0.00021,2]
[322556340,1713053439688,-13774795.5417955,0.00021,2]
[322556343,1713053439718,-23823.44037981,0.00021,2]
[322556373,1713053440488,-335.64,0.00021,2]
[322556374,1713053440508,-612.87236736,0.00021,2]
[322556375,1713053440520,-1050.0,0.00021,2]
[322556376,1713053440534,-721.60231517,0.00021,2]
[322556377,1713053440545,-475.0125079,0.00021,2]
[322556378,1713053440557,-3785.65318087,0.00021,2]
[322556379,1713053440569,-1119.91456548,0.00021,2]
[322556380,1713053440580,-1209.76103313,0.00021,2]
[322556381,1713053440604,-3023.52049999,0.00021,2]
[322556400,1713053443591,-2278.69858913,0.00021,2]
[322556401,1713053443602,-640.64,0.00021,2]
[322556402,1713053443639,-1199.99193745,0.00021,2]
[322556413,1713053445970,-395.17056899,0.000209,2]
[322556414,1713053445980,-5344.75984793,0.00021,2]
[322556415,1713053445991,-1473.95831015,0.00021,2]
[322556416,1713053446003,-3345.80624858,0.00021,2]
[322556417,1713053446194,-1163.43488663,0.00021,2]
[322556418,1713053446259,-64376.12800001,0.00021,2]
[322556422,1713053584193,388.0,0.0003,30]
[322556423,1713053634528,487.71,0.00019385,2]
[322556435,1713053995035,10000.0,0.0003,30]
[322556436,1713054011483,5229.89,0.0003,30]
[322556437,1713054025735,5229.89,0.0003,30]
[322556438,1713054034208,161.67838201,0.00021,10]
[322556439,1713054147885,463.32,0.00019274,2]
[322556504,1713054611466,200.0,0.000119,2]
[322556527,1713054632112,-397.08384421,0.00020898,2]
[322556528,1713054632176,-8261.293752,0.00020898,2]
[322556529,1713054632241,-4620.4614315,0.00020898,2]
[322556530,1713054632362,-6671.64118169,0.00020898,2]
[322556662,1713054640681,-1707.15206711,0.00020898,2]
[322556664,1713054640692,-8510.98312349,0.00020898,2]
[322556666,1713054640702,-1000.0,0.000209,2]
[322556668,1713054640712,-5292.2569,0.000209,2]
[322556670,1713054640721,-6162.2208,0.000209,2]
[322556672,1713054640730,-984.1404655,0.000209,2]
[322556674,1713054640740,-167.5866725,0.000209,2]
[322556676,1713054640749,-7500.0,0.000209,2]
[322556677,1713054640759,-445.98354527,0.000209,2]
[322556678,1713054640771,-554.01645473,0.000209,2]
[322556679,1713054640781,-638.19,0.000209,2]
[322556680,1713054640791,-555.42492911,0.000209,2]
[322556681,1713054640800,-23840.66853971,0.000209,2]
[322556683,1713054640812,-1374.78367325,0.000209,2]
[322556684,1713054640821,-238.18535934,0.000209,2]
[322556687,1713054640830,-833.45658432,0.00020999,2]
[322556689,1713054640840,-311.58224268,0.00020999,2]
[322556691,1713054640850,-3021.84302938,0.00021,2]
[322556693,1713054640863,-2471.69796703,0.00021,2]
[322556695,1713054640875,-11151178.8757454,0.00021,2]
[322556698,1713054640887,-13141276.22165038,0.00021,2]
[322556700,1713054640897,-606.75405225,0.00021,2]
[322556701,1713054640906,-1561.21,0.00021,2]
[322556703,1713054640916,-430.0,0.00021,2]
[322556706,1713054640926,-155.0,0.00021,2]
[322556708,1713054640935,-592957.96373215,0.00021,2]
[322556710,1713054640945,-37808.39236072,0.00021,2]
[322556712,1713054640956,-2933.82549256,0.00021,2]
[322556714,1713054640968,-1871.72578565,0.00021,2]
[322556716,1713054640980,-1496.02245541,0.00021,2]
[322556718,1713054640991,-2076.79935878,0.00021,2]
[322556754,1713054641310,-856.95024421,0.00021,2]
[322556758,1713054641341,-19128.21955215,0.00021,2]
[322556760,1713054641353,-900.54524705,0.00021,2]
[322556772,1713054641451,-325.94546478,0.00021,2]
[322556774,1713054641462,-1548.0550078,0.00021,2]
[322556777,1713054641474,-575.31796261,0.00021,2]
[322556779,1713054641485,-918.902305,0.00021,2]
[322556970,1713054643071,-1199.98320141,0.00021,2]
[322557046,1713054644029,-57366.0,0.00021,2]
[322557051,1713054644196,-63912.78000001,0.00021,2]
[322557105,1713054646304,-6.54342512,0.00021,2]
[322557106,1713054646320,-389.56128829,0.00021,2]
[322557107,1713054646332,-690.09936722,0.00021,2]
[322557108,1713054646359,-74902.773308,0.00021,2]
[322557109,1713054646370,-404.44427062,0.00021,2]
[322557110,1713054646385,-1836.01637255,0.00021,2]
[322557111,1713054646400,-34632.28504643,0.00021,2]
[322557112,1713054646412,-2566.98368203,0.00021,2]
[322557114,1713054648116,-189975.87199999,0.00021,2]
[322557115,1713054648129,-382198.23575103,0.00021,2]
[322557116,1713054648848,-12616.48512,0.00021,2]
[322557117,1713054648926,-451.11300719,0.00021,2]
[322557118,1713054648941,-3444.81421288,0.00021,2]
[322557119,1713054648954,-673.49542188,0.00021,2]
[322557120,1713054648979,-957.29477,0.00021,2]
[322557121,1713054649024,-30520.0,0.00021,2]
[322557122,1713054649037,-73295.81691591,0.00021,2]
[322557123,1713054649049,-1041.00000004,0.00021,2]
[322557124,1713054649073,-26440.0,0.00021,2]
[322557125,1713054664111,150.5,0.0002099,15]
[322557126,1713054664537,207.5,0.0002098,15]
[322557129,1713054782923,150.5,0.0002099,15]
[322557130,1713054783395,150.5,0.0002098,15]
[322557131,1713054783537,150.5,0.0002099,15]
[322557132,1713054783879,150.5,0.0002097,15]
[322557133,1713054784033,150.5,0.0002098,15]
[322557134,1713054784497,150.5,0.0002097,15]
[322557135,1713054796289,497.35,0.00018455,2]
[322557136,1713054895920,250.0,0.00019926,2]
[322557137,1713054925732,209.01,0.00019916,2]
[322557138,1713055024437,150.5,0.0002098,15]
[322557139,1713055024888,150.5,0.0002097,15]
[322557140,1713055025601,183.5,0.0002096,15]
[322557141,1713055037790,202.91344887,0.00018806,5]
[322557142,1713055039583,379.29559862,0.00018806,5]
[322557143,1713055045558,1500.0,0.000204,7]
[322557144,1713055047434,3100.0,0.000205,7]
[322557145,1713055076758,-1500.0,0.000206,7]
[322557146,1713055077605,-1500.0,0.000206,7]
[322557147,1713055079522,-1500.0,0.000206,7]
[322557148,1713055088039,-200.0,0.000206,7]
[322557149,1713055088065,-241.0,0.000207,7]
[322557150,1713055099295,570.49840872,0.00020317,7]
[322557151,1713055156908,-236.38492871,0.00020315,2]
[322557152,1713055158844,-788.0,0.000207,7]
[322557153,1713055179770,570.49840872,0.00020315,7]
[322557154,1713055222652,973.5,0.00019855,2]
[322557155,1713055259835,3848.76,0.00019874,5]
[322557156,1713055262196,570.49840872,0.00020316,7]
[322557157,1713055263149,150.5,0.0002098,15]
[322557158,1713055263269,150.5,0.0002098,15]
[322557159,1713055263639,150.5,0.0002097,15]
[322557160,1713055264170,185.69,0.0002096,15]
[322557161,1713055274480,472.48,0.00017974,2]
[322557162,1713055338207,570.49840872,0.00020237,7]
[322557163,1713055341207,1500.0,0.00019864,2]
[322557164,1713055380086,250.0,0.00019855,2]
[322557165,1713055415370,570.49840872,0.00020237,7]
[322557166,1713055415754,158.3,0.00019848,2]
[322557167,1713055420814,-2529.0,0.000207,7]
[322557168,1713055420827,-2742.0,0.000207,7]
[322557169,1713055420837,-299.99,0.000207,7]
[322557170,1713055420846,-2229.01,0.000208,7]
[322557171,1713055499111,570.49840872,0.00020217,7]
[322557172,1713055508633,230.76,0.00019977,2]
[322557181,1713055581601,570.49840872,0.00020031,7]
[322557184,1713055589761,154.79,0.00019663,2]
[322557186,1713055593362,282.38217184,0.00019565,2]
[322557194,1713055648140,700.0,0.000204,7]
[322557195,1713055650325,1400.0,0.000205,7]
[322557196,1713055655433,1000.0,0.00019687,2]
[322557197,1713055729708,483.01,0.00017763,2]
[322557199,1713055765292,299.99,0.00020218,7]
[322557200,1713055783559,-200.0,0.00020026,2]
[322557201,1713055783588,-483.01,0.00020027,2]
[322557202,1713055783616,-230.76,0.00020032,2]
[322557203,1713055783644,-3866.29852439,0.00020085,2]
[322557204,1713055783670,-230.76,0.00020086,2]
[322557205,1713055783697,-158.02936834,0.00020095,2]
[322557206,1713055783722,-309.34268312,0.00020129,2]
[322557207,1713055783764,-690.65731688,0.00020129,2]
[322557208,1713055783791,-230.76,0.00020141,2]
[322557209,1713055783821,-230.76,0.00020196,2]
[322557210,1713055783846,-503.9147,0.00020218,2]
[322557211,1713055783872,-150.99,0.00020218,2]
[322557212,1713055783900,-1000.0,0.00020233,2]
[322557213,1713055783927,-230.76,0.00020251,2]
[322557214,1713055783957,-230.76,0.00020305,2]
[322557215,1713055783983,-1000.0,0.00020307,2]
[322557216,1713055784010,-167.68,0.00020326,2]
[322557217,1713055784038,-230.76,0.0002036,2]
[322557218,1713055784066,-230.76,0.00020415,2]
[322557219,1713055784094,-230.76,0.0002047,2]
[322557220,1713055784121,-150.0,0.00020493,2]
[322557221,1713055784148,-199.63855897,0.00020525,2]
[322557222,1713055784198,-31.12144103,0.00020525,2]
[322557223,1713055784226,-3184.145563,0.00020576,2]
[322557224,1713055784253,-230.76,0.00020579,2]
[322557225,1713055784280,-150.0,0.00020585,2]
[322557226,1713055784309,-839.4694,0.00020586,2]
[322557227,1713055784336,-150.0,0.00020598,2]
[322557228,1713055784363,-892.70417182,0.000206,7]
[322557229,1713055784690,-1207.29582818,0.000206,7]
[322557230,1713055784718,-230.76,0.00020634,2]
[322557231,1713055784745,-37.66860466,0.00020689,2]
[322557232,1713055818636,648.66,0.00019942,2]
[322557271,1713055833161,-213.22955516,0.00020689,2]
[322557272,1713055833171,-499.99,0.00020689,2]
[322557273,1713055833180,-230.76,0.00020689,2]
[322557274,1713055833189,-1306.02044484,0.000207,7]
[322557282,1713055833287,-770.47256863,0.000207,7]
[322557359,1713055840434,-321.974,0.000207,7]
[322557361,1713055840445,-401.53298653,0.000207,7]
[322557363,1713055840454,-230.76,0.00020744,2]
[322557365,1713055840464,-230.76,0.00020799,2]
[322557367,1713055840473,-1000.0,0.000208,2]
[322557369,1713055840482,-3500.0,0.000208,7]
[322557371,1713055840491,-2500.0,0.000208,2]
[322557373,1713055840500,-288.26838648,0.000208,2]
[322557375,1713055840510,-220.309016,0.00020822,2]
[322557377,1713055840519,-230.76,0.00020853,2]
[322557379,1713055840528,-197.88,0.00020888,3]
[322557381,1713055840537,-153.86908161,0.00020895,2]
[322557383,1713055840546,-224.3238032,0.00020896,2]
[322557385,1713055840555,-236.22147599,0.00020896,2]
[322557387,1713055840564,-508.16375094,0.00020896,2]
[322557389,1713055840574,-416.8732643,0.00020896,7]
[322557391,1713055840585,-200.0,0.00020896,2]
[322557393,1713055840594,-3802.18135432,0.00020896,2]
[322557395,1713055840603,-13282.64609013,0.00020897,2]
[322557397,1713055840612,-298.57199912,0.00020898,2]
[322557399,1713055840621,-155.0,0.00020898,2]
[322557401,1713055840631,-1240.66300341,0.00020898,2]
[322557403,1713055840640,-166.91997935,0.00020898,2]
[322557405,1713055840649,-297.25185244,0.00020898,2]
[322557407,1713055840659,-155.26311271,0.00020898,2]
[322557409,1713055840668,-503.41693526,0.00020898,2]
[322557411,1713055840677,-3633.9781,0.00020898,2]
[322557413,1713055840686,-342.43500003,0.00020898,2]
[322557415,1713055840695,-1296.06527448,0.00020898,2]
[322557417,1713055840704,-1780.16736291,0.00020898,2]
[322557419,1713055840713,-167.5866725,0.00020898,2]
[322557421,1713055840722,-1178.7148,0.00020898,2]
[322557423,1713055840731,-100000.0,0.00020898,2]
[322557425,1713055840741,-679.11259617,0.00020899,2]
[322557426,1713055840750,-201.0295307,0.00020899,2]
[322557428,1713055840759,-155.0,0.00020899,2]
[322557430,1713055840769,-3488.68195188,0.00020899,2]
[322557432,1713055840778,-166511.7464,0.000209,2]
[322557435,1713055840788,-1000.0,0.000209,2]
[322557437,1713055840798,-700.0,0.000209,7]
[322557438,1713055840807,-230.76,0.00020908,2]
[322557440,1713055840817,-3000.0,0.0002092,2]
[322557442,1713055840826,-230.76,0.00020963,2]
[322557444,1713055840839,-1097.38141524,0.00020989,5]
[322557446,1713055840848,-1097.38141525,0.00020989,5]
[322557448,1713055840858,-316286.88353418,0.0002099,2]
[322557451,1713055840870,-2961.87697601,0.0002099,2]
[322557528,1713055841701,-2993.09599932,0.0002099,2]
[322557530,1713055841713,-380.82305455,0.0002099,2]
[322557532,1713055841725,-747.50019241,0.0002099,2]
[322557534,1713055841737,-25157.04955088,0.0002099,2]
[322557539,1713055841767,-1098.40955401,0.0002099,2]
[322557541,1713055841778,-1319.0,0.0002099,2]
[322557543,1713055841789,-376259.07676465,0.0002099,2]
[322557548,1713055841823,-1166.90418274,0.0002099,2]
[322557553,1713055841870,-348.35912814,0.0002099,2]
[322557555,1713055841881,-544.8204943,0.0002099,2]
[322557557,1713055841894,-560.81092094,0.0002099,2]
[322557561,1713055841915,-31986.35613222,0.0002099,2]
[322557707,1713055843203,-968.74002049,0.0002099,2]
[322557807,1713055844202,-819981.32305033,0.0002099,2]
[322557812,1713055844242,-1944.29507129,0.0002099,2]
[322558048,1713055846252,-643.3319958,0.0002099,2]
[322558074,1713055846450,-168.92709017,0.0002099,2]
[322558076,1713055846463,-861.80000004,0.0002099,2]
[322558097,1713055846648,-630.88821062,0.0002099,2]
[322558099,1713055846672,-3214.7,0.0002099,2]
[322558100,1713055846704,-495483.19102277,0.0002099,2]
[322558118,1713055846899,-2057.7175796,0.0002099,2]
[322558395,1713055881687,1491.38878594,0.00018525,2]
[322558396,1713055882046,1491.38878594,0.00018842,2]
[322558397,1713055882439,1491.38878594,0.00019141,2]
[322558398,1713055883580,1491.38878594,0.00019341,2]
[322558399,1713055883838,1491.38878594,0.0001969,2]
[322558400,1713055883976,1491.38878594,0.00019756,2]
[322558401,1713055982825,237.61997763,0.00019756,2]
[322558402,1713056008924,1491.38878595,0.00019713,2]
[322558403,1713056009779,1491.38878595,0.0001997,2]
[322558404,1713056040205,5310.07871045,0.00018,2]
[322558406,1713056080873,2687.07599593,0.0002,7]
[322558408,1713056128735,1491.38878595,0.00019856,2]
[322558409,1713056133392,200.0,0.0001986,2]
[322558410,1713056169475,169.38,0.0001986,2]
[322558411,1713056169723,169.38,0.0001988,2]
[322558412,1713056169973,169.38,0.000199,2]
[322558413,1713056170229,169.38,0.0001992,2]
[322558414,1713056170450,169.38,0.0001994,2]
[322558415,1713056170856,169.38,0.0001996,2]
[322558417,1713056230334,496.09,0.0001796,2]
[322558418,1713056280304,155.95,0.00019862,2]
[322558419,1713056280659,155.95,0.00029793,120]
[322558420,1713056343071,888.61,0.00019956,2]
[322558421,1713056452292,250.0,0.00019822,2]
[322558422,1713056531304,160.06,0.00019932,2]
[322558423,1713056672683,840.0,0.00019661,2]
[322558424,1713056710223,471.28,0.00017777,2]
[322558426,1713056799941,236.53,0.00020364,7]
[322558429,1713056899419,592.07,0.0001972,2]
[322558447,1713056992194,-538.48574102,0.00020015,2]
[322558448,1713056992227,-495.87483595,0.00020016,2]
[322558449,1713056992257,-160.06,0.00020018,2]
[322558450,1713056992287,-471.28,0.00020041,2]
[322558451,1713056992317,-160.06,0.00020105,2]
[322558452,1713056992350,-160.06,0.00020191,2]
[322558453,1713056992382,-431.37210144,0.000202,2]
[322558454,1713056992412,-1491.38878595,0.00020206,2]
[322558455,1713056992442,-1491.38878595,0.00020277,2]
[322558456,1713056992481,-160.06,0.00020278,2]
[322558457,1713056992512,-142.32651048,0.00020278,2]
[322558467,1713057032399,-357.66348952,0.00020278,2]
[322558468,1713057032410,-160.06,0.00020364,2]
[322558469,1713057032419,-160.06,0.00020451,2]
[322558470,1713057032429,-160.06,0.00020537,2]
[322558471,1713057032438,-167.0,0.00020542,2]
[322558472,1713057032448,-439.938796,0.00020548,2]
[322558473,1713057032457,-150.99,0.00020554,2]
[322558474,1713057032466,-160.06,0.00020624,2]
[322558475,1713057032478,-150.0,0.00020636,2]
[322558476,1713057032487,-1500.0,0.00020637,2]
[322558477,1713057032496,-150.0,0.00020641,2]
[322558478,1713057032505,-1500.0,0.00020642,2]
[322558479,1713057032514,-1500.0,0.00020646,2]
[322558480,1713057032523,-1500.0,0.00020663,2]
[322558481,1713057032533,-1500.0,0.00020663,2]
[322558482,1713057032542,-1500.0,0.0002067,2]
[322558483,1713057032552,-1500.0,0.00020675,2]
[322558484,1713057032561,-1500.0,0.00020695,2]
[322558485,1713057032572,-1500.0,0.00020698,2]
[322558486,1713057032584,-7389.25699227,0.000207,2]
[322558487,1713057032595,-19399.6004,0.000207,2]
[322558488,1713057032605,-150.0,0.00020708,2]
[322558489,1713057032616,-160.06,0.0002071,2]
[322558490,1713057032626,-1500.0,0.00020711,2]
[322558491,1713057032636,-300.0,0.00020714,2]
[322558492,1713057032646,-300.0,0.00020715,2]
[322558493,1713057032655,-1500.0,0.00020716,2]
[322558494,1713057032665,-150.0,0.00020716,2]
[322558495,1713057032674,-150.0,0.00020716,2]
[322558496,1713057032684,-1500.0,0.00020717,2]
[322558497,1713057032693,-150.0,0.00020717,2]
[322558498,1713057032702,-150.0,0.00020718,2]
[322558499,1713057032712,-150.0,0.0002072,2]
[322558500,1713057032721,-150.0,0.00020721,2]
[322558501,1713057032737,-1500.0,0.00020722,2]
[322558502,1713057032747,-7389.25699227,0.00020722,2]
[322558503,1713057032756,-150.0,0.00020725,2]
[322558504,1713057032766,-255.16869896,0.00020725,2]
[322558505,1713057032776,-300.0,0.00020726,2]
[322558506,1713057032786,-1500.0,0.00020726,2]
[322558507,1713057032795,-150.0,0.00020726,2]
[322558508,1713057032805,-150.0,0.00020726,2]
[322558509,1713057032814,-1500.0,0.00020727,2]
[322558511,1713057032824,-318.90013945,0.00020729,2]
[322558513,1713057032833,-300.0,0.0002073,2]
[322558515,1713057032843,-150.0,0.00020731,2]
[322558518,1713057032853,-1500.0,0.00020733,2]
[322558519,1713057032862,-150.0,0.00020735,2]
[322558521,1713057032872,-1500.0,0.00020737,2]
[322558523,1713057032881,-1500.0,0.00020738,2]
[322558525,1713057032890,-150.0,0.00020738,2]
[322558527,1713057032900,-1500.0,0.0002074,2]
[322558530,1713057032910,-150.0,0.00020741,2]
[322558532,1713057032919,-150.0,0.00020742,2]
[322558534,1713057032930,-7389.25699227,0.00020744,2]
[322558536,1713057032940,-150.0,0.00020746,2]
[322558537,1713057032949,-150.0,0.00020746,2]
[322558539,1713057032959,-150.0,0.00020748,2]
[322558540,1713057032969,-150.0,0.00020749,2]
[322558541,1713057032986,-150.0,0.00020749,2]
[322558542,1713057032995,-1500.0,0.00020752,2]
[322558543,1713057033005,-150.0,0.00020752,2]
[322558544,1713057033014,-150.0,0.00020754,2]
[322558545,1713057033023,-150.0,0.00020754,2]
[322558546,1713057033033,-150.0,0.00020754,2]
[322558547,1713057033042,-300.0,0.00020756,2]
[322558548,1713057033051,-1500.0,0.00020758,2]
[322558549,1713057033061,-150.0,0.00020758,2]
[322558550,1713057033070,-150.0,0.00020759,2]
[322558551,1713057033080,-150.0,0.0002076,2]
[322558552,1713057033090,-150.0,0.00020761,2]
[322558553,1713057033099,-150.0,0.00020763,2]
[322558554,1713057033109,-150.0,0.00020763,2]
[322558555,1713057033118,-150.0,0.00020765,2]
[322558556,1713057033128,-150.0,0.00020765,2]
[322558557,1713057033137,-300.0,0.00020765,2]
[322558558,1713057033147,-1500.0,0.00020765,2]
[322558559,1713057033157,-150.0,0.00020765,2]
[322558560,1713057033167,-7389.25699227,0.00020767,2]
[322558561,1713057033177,-150.0,0.00020767,2]
[322558562,1713057033186,-150.0,0.00020769,2]
[322558563,1713057033196,-1500.0,0.00020771,2]
[322558564,1713057033206,-150.0,0.00020772,2]
[322558565,1713057033215,-150.0,0.00020776,2]
[322558566,1713057033225,-300.0,0.00020777,2]
[322558567,1713057033243,-150.0,0.00020779,2]
[322558568,1713057033252,-150.0,0.00020779,2]
[322558569,1713057033262,-2484.74008,0.0002078,2]
[322558570,1713057033272,-300.0,0.00020781,2]
[322558571,1713057033281,-150.0,0.00020781,2]
[322558572,1713057033290,-1000.0,0.00020784,2]
[322558573,1713057033300,-150.0,0.00020784,2]
[322558574,1713057033311,-1378.32828147,0.00020785,2]
[322558575,1713057033322,-1500.0,0.00020785,2]
[322558576,1713057033334,-150.0,0.00020785,2]
[322558577,1713057033344,-1500.0,0.00020785,2]
[322558578,1713057033354,-150.0,0.00020785,2]
[322558579,1713057033364,-1500.0,0.00020786,2]
[322558580,1713057033374,-7389.25699227,0.00020789,2]
[322558581,1713057033383,-150.0,0.00020789,2]
[322558582,1713057033393,-152.96337254,0.0002079,2]
[322558583,1713057033403,-150.0,0.00020793,2]
[322558584,1713057033413,-150.0,0.00020794,2]
[322558585,1713057033424,-1500.0,0.00020796,2]
[322558586,1713057033433,-160.06,0.00020797,2]
[322558587,1713057033443,-150.0,0.00020797,2]
[322558588,1713057033452,-234.95778342,0.00020798,2]
[322558589,1713057033461,-1000.0,0.00020799,2]
[322558590,1713057033473,-5000.96307387,0.00020799,2]
[322558591,1713057033492,-590.36505356,0.00020799,2]
[322558592,1713057033501,-182685.30691902,0.000208,2]
[322558593,1713057033557,-2634.02812509,0.000208,2]
[322558594,1713057033585,-404.69128552,0.000208,2]
[322558595,1713057033597,-947.14190502,0.000208,2]